bitfinex-derivatives/quotes_BTCF0:USTF0_20250114
["timestamp","ask_amount","ask_price","bid_price","bid_amount"]
[1736886940190,0.004,96627.0,96587.0,0.051795]
[1736886940191,0.3608,96622.0,96605.0,0.0624]
[1736886940493,0.3608,96622.0,96614.0,0.05178]
[1736886940494,0.051778,96618.0,96614.0,0.05178]
[1736886941190,0.051778,96618.0,96616.0,0.002]
[1736886941393,0.051778,96618.0,96617.0,0.051779]
[1736886944194,0.37098272,96622.0,96616.0,0.002]
[1736886944386,0.37098272,96622.0,96612.0,0.051781]
[1736886944585,0.37098272,96622.0,96617.0,0.002]
[1736886944786,0.051778,96618.0,96617.0,0.002]
[1736886945683,0.051779,96617.0,96616.0,0.051779]
[1736886945891,0.051781,96613.0,96612.0,0.002]
[1736886946109,0.051781,96613.0,96612.0,0.053781]
[1736886946995,0.001,96618.0,96617.0,0.051779]
[1736886947191,0.3608,96622.0,96621.0,0.051776]
[1736886948495,0.3608,96622.0,96621.0,0.052776]
[1736886950299,0.414576,96622.0,96621.0,0.052776]
[1736886950694,0.414576,96622.0,96621.0,0.051776]
[1736886950997,0.414576,96622.0,96621.0,0.052776]
[1736886951203,0.412576,96622.0,96621.0,0.052776]
[1736886951394,0.3618,96622.0,96621.0,0.052776]
[1736886951999,0.3618,96622.0,96621.0,0.051776]
[1736886952803,0.413576,96622.0,96621.0,0.051776]
[1736886954094,0.05178,96614.0,96608.0,0.3608]
[1736886954296,0.05178,96614.0,96608.0,0.37118802]
[1736886954600,0.051778,96618.0,96617.0,0.051779]
[1736886955503,0.001,96614.0,96613.0,0.051781]
[1736886955997,0.05178,96616.0,96614.0,0.05178]
[1736886956803,0.05178,96615.0,96614.0,0.05178]
[1736886957594,0.3608,96622.0,96621.0,0.051776]
[1736886958797,0.3608,96622.0,96612.0,0.10292544]
[1736886958798,0.003,96622.0,96619.0,0.051778]
[1736886959106,0.003,96622.0,96621.0,0.051776]
[1736886959402,0.051767,96639.0,96637.0,0.051768]
[1736886959703,0.3608,96640.0,96637.0,0.051768]
[1736886959704,0.05331963,96638.0,96637.0,0.051768]
[1736886960492,0.05177,96634.0,96632.0,0.05177]
[1736886960693,0.051776,96622.0,96621.0,0.001]
[1736886960995,0.412576,96622.0,96621.0,0.001]
[1736886961202,0.051779,96616.0,96615.0,0.18570839]
[1736886961397,0.412579,96616.0,96615.0,0.18470839]
[1736886961601,0.412579,96616.0,96615.0,0.01430839]
[1736886961602,0.712579,96616.0,96615.0,0.01430839]
[1736886961802,0.051787,96602.0,96594.0,0.051791]
[1736886962002,0.412587,96602.0,96594.0,0.051791]
[1736886962294,0.412587,96602.0,96593.0,0.031]
[1736886962505,0.051787,96601.0,96600.0,0.051787]
[1736886963797,0.051791,96594.0,96593.0,0.084791]
[1736886964003,0.412591,96594.0,96593.0,0.084791]
[1736886964702,0.412591,96594.0,96593.0,0.082791]
[1736886965108,0.412591,96594.0,96593.0,0.031]
[1736886965302,0.412591,96594.0,96585.0,0.0608]
[1736886965303,0.051795,96586.0,96585.0,0.0608]
[1736886965509,0.412595,96586.0,96585.0,0.0608]
[1736886965710,0.412595,96586.0,96585.0,0.0305]
[1736886966300,0.412595,96586.0,96578.0,0.0306]
[1736886966301,0.051799,96579.0,96578.0,0.0306]
[1736886966500,0.051802,96574.0,96570.0,0.24818774]
[1736886966705,0.412602,96574.0,96560.0,0.0963]
[1736886966909,0.412602,96574.0,96560.0,0.148109]
[1736886967311,0.3608,96574.0,96560.0,0.148109]
[1736886967613,0.3608,96574.0,96561.0,0.051809]
[1736886967614,0.051807,96564.0,96561.0,0.051809]
[1736886967804,0.051807,96564.0,96560.0,0.0963]
[1736886968003,0.051807,96564.0,96562.0,0.051808]
[1736886968708,0.3618,96574.0,96562.0,0.051808]
[1736886969007,0.051808,96563.0,96562.0,0.051808]
[1736886970212,0.051808,96563.0,96562.0,0.053808]
[1736886970911,0.052808,96563.0,96562.0,0.056808]
[1736886971806,0.051804,96570.0,96569.0,0.051804]
[1736886972607,0.3608,96574.0,96573.0,0.051802]
[1736886972915,0.3109,96585.0,96584.0,0.051796]
[1736886973605,0.2111,96585.0,96584.0,0.051796]
[1736886974007,0.3608,96598.0,96578.0,0.3608]
[1736886974212,0.051792,96593.0,96588.0,0.412594]
[1736886975212,0.051789,96598.0,96588.0,0.412594]
[1736886975809,0.3608,96610.0,96588.0,0.412594]
[1736886976005,0.3608,96610.0,96588.0,0.3618]
[1736886976214,0.3608,96610.0,96609.0,0.051783]
[1736886977411,0.3698,96610.0,96609.0,0.051783]
[1736886977609,0.3708,96610.0,96609.0,0.051783]
[1736886977806,0.01,96610.0,96609.0,0.051783]
[1736886978118,0.001,96610.0,96609.0,0.052783]
[1736886979802,0.001,96610.0,96609.0,0.051783]
[1736886980008,0.412577,96620.0,96609.0,0.001]
[1736886980208,0.412577,96620.0,96616.0,0.051779]
[1736886980425,0.412577,96620.0,96611.0,0.3608]
[1736886980714,0.412577,96620.0,96617.0,0.051778]
[1736886981318,0.412577,96620.0,96611.0,0.3608]
[1736886981319,0.413577,96620.0,96618.0,0.051778]
[1736886981514,0.413577,96620.0,96611.0,0.3608]
[1736886981721,0.413577,96620.0,96619.0,0.051778]
[1736886982421,0.051773,96618.0,96617.0,0.051773]
[1736886982726,0.3618,96620.0,96619.0,0.051773]
[1736886983018,0.413572,96620.0,96619.0,0.051773]
[1736886983212,0.3608,96620.0,96619.0,0.051773]
[1736886983508,0.001,96620.0,96619.0,0.051773]
[1736886983711,0.00155288,96630.0,96629.0,0.051767]
[1736886983911,0.00155288,96630.0,96629.0,0.412567]
[1736886986319,0.00355288,96630.0,96629.0,0.412567]
[1736886986924,0.00655288,96630.0,96629.0,0.412567]
[1736886987527,0.051753,96656.0,96653.0,0.051754]
[1736886987727,0.3608,96669.0,96629.0,0.6618]
[1736886987728,0.3608,96669.0,96649.0,0.3608]
[1736886987930,0.051755,96652.0,96649.0,0.3608]
[1736886988116,0.051755,96652.0,96650.0,0.051756]
[1736886988915,0.009,96656.0,96654.0,0.051753]
[1736886989425,0.009,96656.0,96655.0,0.0628]
[1736886990624,0.051745,96670.0,96655.0,0.0931]
[1736886990825,0.051745,96670.0,96665.0,0.051748]
[1736886991018,0.051745,96670.0,96666.0,0.051747]
[1736886991218,0.051746,96669.0,96666.0,0.051747]
[1736886991624,0.051746,96669.0,96667.0,0.051746]
[1736886992828,0.051746,96669.0,96668.0,0.051746]
[1736886993529,0.051748,96665.0,96664.0,0.3608]
[1736886994833,0.053748,96665.0,96664.0,0.3608]
[1736886995623,0.051754,96654.0,96647.0,0.051757]
[1736886996030,0.051754,96654.0,96646.0,0.01044384]
[1736886996530,0.05175,96662.0,96659.0,0.051751]
[1736886997029,0.05175,96661.0,96659.0,0.051751]
[1736886997636,0.05175,96661.0,96660.0,0.05175]
[1736886999441,0.05375,96661.0,96660.0,0.05175]
[1736887000142,0.05275,96661.0,96660.0,0.05175]
[1736887000336,0.05375,96661.0,96660.0,0.05175]
[1736887000537,0.002,96661.0,96660.0,0.05175]
[1736887002340,0.3608,96679.0,96671.0,0.051745]
[1736887002540,0.051741,96678.0,96671.0,0.412545]
[1736887003040,0.3608,96688.0,96671.0,0.412545]
[1736887003239,0.3608,96698.0,96671.0,0.412545]
[1736887003240,0.05174,96680.0,96671.0,0.412545]
[1736887003635,0.00455216,96672.0,96671.0,0.412545]
[1736887004540,0.05629616,96672.0,96671.0,0.412545]
[1736887004744,0.06129616,96672.0,96671.0,0.413545]
[1736887005249,0.00955216,96672.0,96671.0,0.413545]
[1736887005747,0.1026,96700.0,96671.0,0.413545]
[1736887005748,0.1026,96700.0,96671.0,0.714545]
[1736887006045,0.1026,96700.0,96699.0,0.05173]
[1736887006046,0.1,96700.0,96699.0,0.05173]
[1736887006547,0.151729,96700.0,96699.0,0.05173]
[1736887006943,0.154729,96700.0,96699.0,0.05173]
[1736887007149,0.051731,96697.0,96696.0,0.3608]
[1736887008542,0.051741,96679.0,96678.0,0.051741]
[1736887010055,0.051741,96678.0,96677.0,0.3608]
[1736887010446,0.051741,96678.0,96671.0,0.0015516]
[1736887010447,0.051744,96672.0,96671.0,0.0015516]
[1736887011856,0.051744,96672.0,96671.0,0.0035516]
[1736887012358,0.06209044,96672.0,96671.0,0.0035516]
[1736887012551,0.051752,96658.0,96657.0,0.3608]
[1736887014158,0.051752,96658.0,96657.0,0.3628]
[1736887015158,0.051752,96658.0,96657.0,0.002]
[1736887015347,0.051752,96658.0,96657.0,0.0005516]
[1736887016056,0.052752,96658.0,96657.0,0.0005516]
[1736887016448,0.052752,96658.0,96644.0,0.3608]
[1736887016759,0.051758,96646.0,96645.0,0.051758]
[1736887017258,0.059752,96658.0,96657.0,0.001]
[1736887017851,0.059752,96658.0,96644.0,0.3638]
[1736887017852,0.051758,96645.0,96644.0,0.3638]
[1736887018655,0.051758,96645.0,96644.0,0.001]
[1736887019344,0.051764,96634.0,96633.0,0.03235216]
[1736887019546,0.051764,96634.0,96633.0,0.00155216]
[1736887020249,0.051772,96619.0,96618.0,0.0661]
[1736887021351,0.052772,96619.0,96618.0,0.009]
[1736887022163,0.06315671,96619.0,96618.0,0.009]
[1736887022545,0.06315671,96619.0,96618.0,0.012]
[1736887023055,0.36415671,96619.0,96591.0,0.0638]
[1736887023355,0.051787,96592.0,96591.0,0.0638]
[1736887023555,0.412581,96604.0,96591.0,0.0638]
[1736887024259,0.412581,96604.0,96591.0,0.115587]
[1736887024650,0.412581,96604.0,96591.0,0.0638]
[1736887024956,0.00155309,96615.0,96602.0,0.3608]
[1736887025150,0.00155309,96615.0,96613.0,0.3608]
[1736887025549,0.00155309,96615.0,96613.0,0.412575]
[1736887025761,0.00155309,96615.0,96614.0,0.0311]
[1736887026144,0.00155309,96615.0,96614.0,0.082875]
[1736887026758,0.15422162,96650.0,96614.0,0.082875]
[1736887026960,0.15682162,96650.0,96621.0,0.3608]
[1736887027254,0.051762,96640.0,96629.0,0.3608]
[1736887027454,0.051762,96640.0,96635.0,0.051764]
[1736887027755,0.37099858,96643.0,96642.0,0.05176]
[1736887028963,0.01019858,96643.0,96642.0,0.05176]
[1736887029147,0.05176,96643.0,96642.0,0.05176]
[1736887029543,0.05576,96643.0,96642.0,0.05176]
[1736887029752,0.004,96643.0,96642.0,0.05176]
[1736887030346,0.012,96643.0,96642.0,0.05176]
[1736887030945,0.003,96643.0,96642.0,0.05176]
[1736887031149,0.005,96643.0,96642.0,0.05176]
[1736887031550,0.051749,96663.0,96642.0,0.05176]
[1736887031754,0.051749,96662.0,96654.0,0.051754]
[1736887031948,0.3608,96665.0,96654.0,0.051754]
[1736887031949,0.051751,96660.0,96654.0,0.051754]
[1736887032156,0.051751,96659.0,96654.0,0.051754]
[1736887032747,0.01030343,96661.0,96654.0,0.051754]
[1736887033158,0.55684,96673.0,96654.0,0.051754]
[1736887033453,0.00855243,96655.0,96654.0,0.051754]
[1736887033947,0.00855243,96655.0,96650.0,0.7216]
[1736887033948,0.0101978,96677.0,96652.0,0.01038387]
[1736887034167,0.05174,96679.0,96665.0,0.051748]
[1736887034463,0.05174,96679.0,96666.0,0.0308]
[1736887034755,0.3608,96686.0,96668.0,0.051746]
[1736887034756,0.051738,96684.0,96668.0,0.051746]
[1736887034956,0.3608,96686.0,96679.0,0.05174]
[1736887034957,0.051739,96681.0,96679.0,0.05174]
[1736887035159,0.009,96674.0,96673.0,0.051744]
[1736887036650,0.003,96674.0,96673.0,0.051744]
[1736887036855,0.06074,96679.0,96667.0,0.051746]
[1736887037056,0.06074,96679.0,96678.0,0.051741]
[1736887037256,0.05174,96679.0,96678.0,0.051741]
[1736887038158,0.051743,96674.0,96673.0,0.053743]
[1736887038359,0.051743,96674.0,96673.0,0.052743]
[1736887038560,0.051743,96674.0,96673.0,0.051743]
[1736887040062,0.051743,96674.0,96673.0,0.052743]
[1736887040258,0.060743,96674.0,96673.0,0.052743]
[1736887040458,0.060743,96674.0,96673.0,0.053743]
[1736887040459,0.066743,96674.0,96673.0,0.053743]
[1736887045063,0.07712166,96674.0,96673.0,0.053743]
[1736887050267,0.015,96674.0,96673.0,0.053743]
[1736887050856,0.412533,96694.0,96693.0,0.051733]
[1736887051469,0.06195766,96694.0,96693.0,0.051733]
[1736887052164,0.07095766,96694.0,96693.0,0.052733]
[1736887053165,0.07495766,96694.0,96693.0,0.053733]
[1736887053769,0.07095766,96694.0,96693.0,0.052733]
[1736887054065,0.06495766,96694.0,96693.0,0.051733]
[1736887054264,0.06895766,96694.0,96693.0,0.052733]
[1736887055675,0.007,96694.0,96693.0,0.052733]
[1736887055868,0.10532466,96694.0,96693.0,0.052733]
[1736887056067,0.10532466,96694.0,96693.0,0.001]
[1736887056268,0.10532466,96694.0,96693.0,0.052733]
[1736887057777,0.007,96694.0,96693.0,0.052733]
[1736887061072,0.007,96694.0,96693.0,0.0631512]
[1736887061475,0.10427958,96694.0,96693.0,0.0631512]
[1736887062683,0.007,96694.0,96693.0,0.0631512]
[1736887063084,0.007,96694.0,96693.0,0.4239512]
[1736887065184,0.00155209,96699.0,96698.0,0.05173]
[1736887066290,0.00555209,96699.0,96698.0,0.05173]
[1736887066492,0.01055209,96699.0,96698.0,0.05273]
[1736887070496,0.0026,96723.0,96698.0,0.05273]
[1736887070497,0.0026,96723.0,96722.0,0.051717]
[1736887070696,0.06207223,96723.0,96722.0,0.051717]
[1736887071695,0.27222319,96723.0,96722.0,0.02094843]
[1736887072005,0.27322319,96723.0,96722.0,0.002]
[1736887072488,0.06307223,96723.0,96722.0,0.002]
[1736887072691,0.06307223,96723.0,96722.0,0.053716]
[1736887073594,0.16031721,96723.0,96722.0,0.053716]
[1736887077892,0.06307223,96723.0,96722.0,0.053716]
[1736887080200,0.01135523,96723.0,96722.0,0.053716]
[1736887080997,0.001,96723.0,96722.0,0.414516]
[1736887081195,0.30890403,96740.0,96733.0,0.051711]
[1736887081401,0.01035898,96749.0,96742.0,0.051707]
[1736887081607,0.27767975,96752.0,96751.0,0.051702]
[1736887082502,0.33979443,96766.0,96765.0,0.051694]
[1736887082708,0.33979443,96766.0,96765.0,0.412494]
[1736887083298,0.051686,96782.0,96765.0,0.412494]
[1736887083602,0.01048363,96776.0,96774.0,0.051689]
[1736887083805,0.37128363,96776.0,96774.0,0.051689]
[1736887084006,0.051694,96766.0,96765.0,0.001]
[1736887084210,0.412494,96766.0,96765.0,0.001]
[1736887085500,0.412494,96766.0,96765.0,0.051694]
[1736887085696,0.412494,96766.0,96765.0,0.052694]
[1736887086512,0.42262125,96766.0,96765.0,0.001]
[1736887086806,0.42262125,96766.0,96758.0,0.051698]
[1736887086807,0.051698,96758.0,96757.0,0.3608]
[1736887088412,0.051698,96758.0,96757.0,0.412499]
[1736887089105,0.051698,96758.0,96757.0,0.3608]
[1736887089805,0.05178061,96758.0,96757.0,0.3608]
[1736887090810,0.10285746,96770.0,96757.0,0.3608]
[1736887090811,0.051691,96771.0,96770.0,0.051691]
[1736887091112,0.30423973,96775.0,96774.0,0.051689]
[1736887091301,0.27403973,96775.0,96774.0,0.051689]
[1736887091497,0.051692,96770.0,96769.0,0.3608]
[1736887092401,0.051698,96758.0,96757.0,0.3608]
[1736887097012,0.051702,96750.0,96749.0,0.3608]
[1736887098311,0.051702,96750.0,96749.0,0.412503]
[1736887098514,0.051702,96750.0,96749.0,0.3608]
[1736887102609,0.06204862,96750.0,96749.0,0.3608]
[1736887103419,0.06204862,96750.0,96728.0,0.00155068]
[1736887103420,0.051707,96742.0,96728.0,0.00155068]
[1736887103622,0.051713,96731.0,96730.0,0.412513]
[1736887104417,0.05171,96736.0,96735.0,0.051709]
[1736887104608,0.051705,96745.0,96730.0,0.3608]
[1736887104814,0.051714,96729.0,96721.0,0.3608]
[1736887105117,0.15456946,96731.0,96730.0,0.005]
[1736887105322,0.051712,96731.0,96730.0,0.005]
[1736887105518,0.08181,96736.0,96708.0,0.0026]
[1736887105719,0.08181,96736.0,96706.0,0.3608]
[1736887105720,0.051725,96707.0,96706.0,0.3608]
[1736887107438,0.051725,96707.0,96706.0,0.3628]
[1736887107831,0.051725,96707.0,96706.0,0.002]
[1736887108018,0.051738,96684.0,96683.0,0.3608]
[1736887109626,0.051738,96684.0,96683.0,0.3698]
[1736887110015,0.051738,96684.0,96683.0,0.3748]
[1736887110821,0.051738,96684.0,96683.0,0.422538]
[1736887111023,0.051738,96684.0,96683.0,0.3708]
[1736887111221,0.051738,96684.0,96683.0,0.01]
[1736887111424,0.051738,96684.0,96683.0,0.002]
[1736887111925,0.051738,96684.0,96683.0,0.001]
[1736887112428,0.051738,96684.0,96662.0,0.3608]
[1736887112429,0.051748,96665.0,96662.0,0.3608]
[1736887112621,0.051748,96665.0,96663.0,0.051749]
[1736887112823,0.3608,96676.0,96663.0,0.051749]
[1736887113029,0.051748,96664.0,96663.0,0.051749]
[1736887113821,0.051748,96664.0,96663.0,0.053749]
[1736887114232,0.051748,96664.0,96663.0,0.002]
[1736887114627,0.051748,96664.0,96663.0,0.009]
[1736887115330,0.051748,96664.0,96663.0,0.007]
[1736887115532,0.051748,96664.0,96663.0,0.01]
[1736887119731,0.05176,96643.0,96642.0,0.00155206]
[1736887121625,0.05176,96643.0,96642.0,0.00255206]
[1736887122436,0.05176,96643.0,96642.0,0.00855206]
[1736887123030,0.06231308,96643.0,96642.0,0.00255206]
[1736887124236,0.05176,96643.0,96642.0,0.00255206]
[1736887128432,0.05176,96643.0,82278.0,0.015]
[1736887128433,0.051771,96621.0,96616.0,0.01022017]
[1736887128641,0.05176,96642.0,96618.0,0.24695418]
[1736887128642,0.3608,96625.0,96618.0,0.24695418]
[1736887128935,0.051772,96619.0,96618.0,0.24695418]
[1736887129234,0.051772,96619.0,96618.0,0.29872718]
[1736887129825,0.051772,96619.0,96618.0,0.24695418]
[1736887130535,0.051772,96619.0,96618.0,0.004]
[1736887131536,0.052772,96619.0,96618.0,0.013]
[1736887133834,0.001,96619.0,96618.0,0.064773]
[1736887135235,0.051772,96620.0,96619.0,0.051771]
[1736887135432,0.051772,96620.0,96619.0,0.412571]
[1736887136032,0.051772,96620.0,96619.0,0.3608]
[1736887136231,0.051772,96619.0,96618.0,0.009]
[1736887137529,0.051776,96613.0,96612.0,0.051776]
[1736887139443,0.051776,96613.0,96612.0,0.065776]
[1736887140936,0.051776,96613.0,96612.0,0.014]
[1736887141243,0.051776,96613.0,96607.0,0.37043127]
[1736887141244,0.051778,96608.0,96607.0,0.37043127]
[1736887141444,0.051782,96601.0,96600.0,0.1]
[1736887141651,0.412582,96601.0,96600.0,0.1]
[1736887143148,0.412582,96601.0,96600.0,0.114]
[1736887143739,0.42270287,96601.0,96600.0,0.114]
[1736887144439,0.051782,96601.0,96600.0,0.114]
[1736887144644,0.051782,96601.0,96600.0,0.526583]
[1736887146847,0.051778,96609.0,96608.0,0.051778]
[1736887147040,0.051778,96609.0,96608.0,0.412578]
[1736887148258,0.052778,96609.0,96608.0,0.419578]
[1736887149045,0.052778,96609.0,96608.0,0.3678]
[1736887149554,0.051782,96601.0,96600.0,0.1]
[1736887149747,0.412582,96601.0,96600.0,0.1]
[1736887150743,0.412582,96601.0,96600.0,0.0501]
[1736887150947,0.413582,96601.0,96600.0,0.0591]
[1736887151342,0.413582,96601.0,96600.0,0.0631]
[1736887151545,0.413582,96601.0,96590.0,0.3608]
[1736887151546,0.051787,96591.0,96590.0,0.3608]
[1736887152053,0.051794,96580.0,96579.0,0.051793]
[1736887152349,0.051794,96580.0,96578.0,0.18542922]
[1736887152350,0.051794,96579.0,96578.0,0.18542922]
[1736887153157,0.3608,96580.0,96573.0,0.051797]
[1736887153457,0.051796,96574.0,96573.0,0.051797]
[1736887153659,0.117588,96590.0,96578.0,0.051793]
[1736887153660,0.051794,96579.0,96578.0,0.051793]
[1736887153954,0.051794,96579.0,96569.0,0.3608]
[1736887153955,0.051799,96574.0,96573.0,0.051797]
[1736887154153,0.051799,96574.0,96569.0,0.3608]
[1736887154154,0.051799,96570.0,96569.0,0.3608]
[1736887155147,0.045799,96570.0,96569.0,0.3608]
[1736887155453,0.051803,96562.0,96554.0,0.051807]
[1736887155757,0.051803,96562.0,96549.0,0.36235352]
[1736887155758,0.051809,96550.0,96549.0,0.36235352]
[1736887156256,0.051809,96550.0,96549.0,0.41416352]
[1736887157047,0.10385746,96570.0,96549.0,0.36235352]
[1736887157249,0.10385746,96570.0,96560.0,0.412604]
[1736887157450,0.412597,96574.0,96560.0,0.412604]
[1736887157451,0.051803,96561.0,96560.0,0.51546146]
[1736887157651,0.051803,96561.0,96560.0,0.412604]
[1736887158447,0.051803,96561.0,96560.0,0.415604]
[1736887158848,0.052803,96561.0,96560.0,0.3638]
[1736887159054,0.052803,96561.0,96560.0,0.3608]
[1736887159254,0.052803,96561.0,96560.0,0.3628]
[1736887162054,0.052803,96561.0,96560.0,0.002]
[1736887162255,0.051813,96544.0,96540.0,0.36235369]
[1736887162461,0.051813,96544.0,96541.0,0.0323]
[1736887162963,0.10285746,96551.0,96541.0,0.0323]
[1736887163161,0.10285746,96551.0,96540.0,0.00155369]
[1736887163162,0.051814,96541.0,96540.0,0.00155369]
[1736887163659,0.05167187,96541.0,96540.0,0.00155369]
[1736887163865,0.04567187,96541.0,96540.0,0.00155369]
[1736887164762,0.04667187,96541.0,96540.0,0.00655369]
[1736887164950,0.04767187,96541.0,96540.0,0.00655369]
[1736887168561,0.04767187,96541.0,96540.0,0.05836869]
[1736887170266,0.04767187,96541.0,96540.0,0.00655369]
[1736887171352,0.04767187,96541.0,96540.0,0.05836869]
[1736887171863,0.04767187,96541.0,96540.0,0.00655369]
[1736887173867,0.04667187,96541.0,96540.0,0.00155369]
[1736887175166,0.04567187,96541.0,96540.0,0.00155369]
[1736887175371,0.04567187,96541.0,96540.0,0.05336869]
[1736887175870,0.04567187,96541.0,96540.0,0.00155369]
[1736887176868,0.04667187,96541.0,96540.0,0.00155369]
[1736887177572,0.04767187,96541.0,96540.0,0.00155369]
[1736887178265,0.04867187,96541.0,96540.0,0.00155369]
[1736887178467,0.04967187,96541.0,96540.0,0.00155369]
[1736887178761,0.051815,96539.0,96538.0,0.3608]
[1736887180170,0.051818,96533.0,96532.0,0.051819]
[1736887180370,0.051819,96532.0,96531.0,0.0312]
[1736887180769,0.051819,96532.0,96531.0,0.08302]
[1736887181170,0.051826,96518.0,96517.0,0.412627]
[1736887181368,0.051826,96518.0,96517.0,0.3608]
[1736887182270,0.051826,96518.0,96512.0,0.04401898]
[1736887182271,0.051826,96518.0,96512.0,0.0322]
[1736887182770,0.051826,96518.0,96512.0,0.08403]
[1736887183379,0.051826,96518.0,96513.0,0.051829]
[1736887183573,0.10285746,96527.0,96512.0,0.0322]
[1736887183768,0.001,96518.0,96515.0,0.051828]
[1736887184280,0.001,96518.0,96512.0,0.0322]
[1736887184281,0.051829,96514.0,96512.0,0.0322]
[1736887184481,0.051831,96511.0,96509.0,0.3608]
[1736887184686,0.051831,96510.0,96509.0,0.3608]
[1736887185383,0.051831,96510.0,96509.0,0.412631]
[1736887187881,0.052831,96510.0,96509.0,0.412631]
[1736887192474,0.052831,96510.0,96509.0,0.3608]
[1736887192675,0.052831,96510.0,96504.0,0.051834]
[1736887192986,0.051833,96505.0,96504.0,0.051834]
[1736887193489,0.051833,96509.0,96508.0,0.051832]
[1736887193685,0.051833,96505.0,96504.0,0.412634]
[1736887194390,0.051833,96505.0,96504.0,0.3608]
[1736887194982,0.052833,96505.0,96504.0,0.3608]
[1736887199093,0.052833,96505.0,96500.0,2.10136]
[1736887199293,0.052833,96505.0,96500.0,2.1]
[1736887199294,0.051836,96501.0,96500.0,2.1]
[1736887200496,0.051836,96501.0,96500.0,2.151836]
[1736887200797,0.052836,96501.0,96500.0,2.151836]
[1736887202295,0.001,96501.0,96500.0,2.151836]
[1736887202489,0.412623,96525.0,96500.0,2.1]
[1736887202797,0.051827,96517.0,96516.0,0.3608]
[1736887203898,0.052827,96517.0,96516.0,0.3608]
[1736887205396,0.051828,96516.0,96505.0,0.051833]
[1736887205597,0.051835,96506.0,96505.0,0.051833]
[1736887207204,0.051835,96506.0,96505.0,0.052833]
[1736887207406,0.052835,96506.0,96505.0,0.052833]
[1736887207803,0.052835,96506.0,96505.0,0.001]
[1736887209408,0.052835,96506.0,96505.0,0.3618]
[1736887209797,0.052835,96506.0,96505.0,0.413633]
[1736887210604,0.052835,96506.0,96505.0,0.3618]
[1736887211705,0.001,96506.0,96505.0,0.413633]
[1736887211906,0.051823,96524.0,96505.0,0.3618]
[1736887212111,0.051827,96517.0,96516.0,0.3608]
[1736887213412,0.052827,96517.0,96516.0,0.3608]
[1736887214108,0.055827,96517.0,96516.0,0.3608]
[1736887214505,0.054827,96517.0,96516.0,0.3618]
[1736887215703,0.051827,96517.0,96516.0,0.3618]
[1736887215903,0.052827,96517.0,96516.0,0.3618]
[1736887216804,0.05183,96512.0,96511.0,0.18557321]
[1736887217109,0.05183,96512.0,96505.0,0.24879095]
[1736887217110,0.051833,96506.0,96505.0,0.24636216]
[1736887217315,0.051833,96506.0,96500.0,2.10132]
[1736887217316,0.051836,96501.0,96500.0,0.83965139]
[1736887217502,0.051836,96501.0,96489.0,0.37060016]
[1736887217503,0.051842,96490.0,96489.0,0.37060016]
[1736887217707,0.051851,96473.0,96472.0,0.39361349]
[1736887217901,0.773451,96473.0,96472.0,0.30983714]
[1736887218105,0.051855,96465.0,96464.0,0.00092]
[1736887218416,0.051856,96464.0,96461.0,0.30983714]
[1736887218601,0.36136001,96465.0,96461.0,0.30983714]
[1736887218808,0.3608,96465.0,96461.0,0.30983714]
[1736887219113,0.36132001,96473.0,96464.0,0.3608]
[1736887219114,0.00052001,96473.0,96464.0,0.3608]
[1736887219303,0.412645,96483.0,96465.0,0.031]
[1736887219705,0.3608,96483.0,96465.0,0.031]
[1736887219901,0.3608,96483.0,96477.0,0.051848]
[1736887220109,0.3608,96483.0,96482.0,0.051846]
[1736887220417,0.37089594,96483.0,96482.0,0.051846]
[1736887220611,0.37189594,96483.0,96482.0,0.051846]
[1736887221117,0.37089594,96483.0,96482.0,0.051846]
[1736887221611,0.13184829,96483.0,96482.0,0.051846]
[1736887222104,0.12175235,96483.0,96482.0,0.01206964]
[1736887222308,0.12175235,96483.0,96473.0,0.0649]
[1736887222509,0.12175235,96483.0,96482.0,0.051846]
[1736887222718,0.003,96483.0,96482.0,0.051846]
[1736887222923,0.005,96483.0,96482.0,0.051846]
[1736887223119,0.00155539,96493.0,96492.0,0.05184]
[1736887223415,0.3608,96514.0,96513.0,0.051829]
[1736887223615,0.37127505,96514.0,96513.0,0.051829]
[1736887224621,0.38027505,96514.0,96513.0,0.051829]
[1736887225312,0.3698,96514.0,96513.0,0.051829]
[1736887226024,0.3748,96514.0,96513.0,0.051829]
[1736887226322,0.3728,96514.0,96513.0,0.051829]
[1736887227616,0.424629,96514.0,96513.0,0.051829]
[1736887228725,0.3728,96514.0,96506.0,0.0302]
[1736887228915,0.05183,96511.0,96506.0,0.0302]
[1736887229113,0.05183,96511.0,96501.0,0.065]
[1736887229114,0.3608,96512.0,96501.0,0.065]
[1736887229318,0.3608,96502.0,96501.0,0.065]
[1736887229713,0.3608,96502.0,96501.0,0.0326]
[1736887229915,0.3608,96502.0,96477.0,0.054448]
[1736887229916,0.3608,96502.0,96483.0,0.0313]
[1736887230117,0.41264,96492.0,96483.0,0.0313]
[1736887230417,0.051847,96479.0,96478.0,0.0308]
[1736887231420,0.3608,96480.0,96478.0,0.0308]
[1736887231824,0.051847,96479.0,96478.0,0.0308]
[1736887232413,0.052847,96479.0,96478.0,0.0308]
[1736887232726,0.001,96479.0,96472.0,0.051851]
[1736887232912,0.05185,96474.0,96472.0,0.051851]
[1736887233317,0.051852,96470.0,96469.0,0.0326]
[1736887233928,0.412652,96470.0,96469.0,0.0326]
[1736887235128,0.3608,96470.0,96469.0,0.084453]
[1736887235325,0.051852,96471.0,96469.0,0.0326]
[1736887235527,0.051849,96477.0,96476.0,0.051847]
[1736887235828,0.3608,96482.0,96469.0,0.0326]